fUSD/lending_fUSD_20250720
["ID","MTS","AMOUNT","RATE_DAILY","PERIOD"]
[373544288,1753035603160,1000.0,0.0002301,30]
[373544289,1753035610623,150.0,0.00021,29]
[373544295,1753035778679,6068.4,0.0003,120]
[373544296,1753035801324,393.49,0.00026282,120]
[373544297,1753035841558,156.05,0.000229,31]
[373544298,1753035841640,156.05,0.000229,31]
[373544299,1753035841684,156.05,0.000229,31]
[373544300,1753035841733,156.05,0.000229,31]
[373544301,1753035841795,156.05,0.000229,31]
[373544302,1753035841912,156.05,0.000229,31]
[373544303,1753035841999,156.05,0.000229,31]
[373544311,1753036171275,-185.42581838,0.00016922,2]
[373544312,1753036171296,-2026.05284325,0.00016922,2]
[373544314,1753036177417,321.71,0.00013699,2]
[373544331,1753036232179,-303.46325936,0.00016922,2]
[373544333,1753036232194,-2566.02575202,0.00016922,2]
[373544335,1753036232204,-1200.0,0.00016998,2]
[373544337,1753036232214,-300.0,0.00016998,2]
[373544339,1753036232224,-500.0,0.00016999,2]
[373544341,1753036232233,-500.0,0.00016999,2]
[373544342,1753036232242,-500.0,0.00016999,2]
[373544343,1753036232252,-350.0,0.00016999,2]
[373544345,1753036232261,-542.6240305,0.00016999,2]
[373544347,1753036232270,-396.51458504,0.00016999,2]
[373544349,1753036232280,-300.0,0.00016999,2]
[373544350,1753036232289,-250.0,0.00016999,2]
[373544352,1753036232298,-1000.0,0.00016999,2]
[373544354,1753036232308,-300.0,0.00016999,2]
[373544356,1753036232317,-1000.0,0.00017,2]
[373544358,1753036232328,-6882.95773551,0.00017,2]
[373544360,1753036232395,-6954.89919277,0.00017,2]
[373544361,1753036232686,-1108.07682666,0.00017,2]
[373544362,1753036232699,-2595.00633767,0.00017,2]
[373544363,1753036232713,-11157.41909805,0.00017,2]
[373544365,1753036237498,-1177.2,0.00017,2]
[373544366,1753036237752,-442.2587632,0.00017,2]
[373544367,1753036237763,-1072.10787933,0.00017,2]
[373544369,1753036237866,-569.31305509,0.00017,2]
[373544370,1753036237878,-2102.77533181,0.00017,2]
[373544374,1753036237918,-850.50277783,0.00017,2]
[373544376,1753036237930,-1124.0677802,0.00017,2]
[373544378,1753036237941,-3609.6,0.00017,2]
[373544570,1753036239937,-335.5426165,0.00017,2]
[373544908,1753036243043,-300321.4326677,0.00017,2]
[373544913,1753036243082,-633.54823695,0.00017,2]
[373544918,1753036243126,-749.749,0.00017,2]
[373544921,1753036243138,-446.82409061,0.00017,2]
[373544923,1753036243149,-5953.88420493,0.00017,2]
[373544925,1753036243165,-1343.11198379,0.00017,2]
[373544928,1753036243175,-524.28644274,0.00017,2]
[373544930,1753036243191,-5751.73588087,0.00017,2]
[373544932,1753036243202,-3128.38428795,0.00017,2]
[373545166,1753036245667,-2578.72061342,0.00017,2]
[373545172,1753036245714,-8000.380412,0.00017,2]
[373545181,1753036245857,-156107.30490298,0.00017,2]
[373545182,1753036245866,-250.0,0.00017022,2]
[373545185,1753036245877,-300.0,0.00017046,2]
[373545187,1753036245887,-300.0,0.00017113,2]
[373545188,1753036245896,-509.0,0.00017159,2]
[373545190,1753036245906,-4895.54185462,0.00017198,2]
[373545192,1753036245915,-795.13,0.00017219,2]
[373545195,1753036245925,-2362.44648563,0.00017234,2]
[373545197,1753036245934,-150.0,0.00017334,2]
[373545199,1753036245943,-150.0,0.00017334,2]
[373545200,1753036245953,-150.0,0.00017334,2]
[373545203,1753036245962,-150.00000001,0.00017334,2]
[373545204,1753036245975,-150.0,0.00017334,2]
[373545206,1753036245986,-150.0,0.00017334,2]
[373545208,1753036245997,-150.0,0.00017334,2]
[373545210,1753036246006,-379.12,0.00017438,2]
[373545212,1753036246015,-4895.54185462,0.00017474,2]
[373545214,1753036246024,-2362.44648558,0.00017475,2]
[373545216,1753036246034,-1000.0,0.00017477,2]
[373545219,1753036246044,-287.0,0.000175,2]
[373545221,1753036246054,-666.0,0.00017512,2]
[373545223,1753036246063,-393.49,0.00017521,2]
[373545225,1753036246073,-234.3,0.00017536,3]
[373545227,1753036246082,-2362.44648558,0.00017717,2]
[373545228,1753036246092,-4895.54185462,0.0001775,2]
[373545230,1753036246101,-867.23,0.0001789,2]
[373545232,1753036246110,-392.63,0.00017921,2]
[373545235,1753036246120,-1405.91,0.00017923,2]
[373545236,1753036246129,-1405.91,0.00017932,2]
[373545238,1753036246137,-1405.91,0.00017941,2]
[373545240,1753036246146,-345.78,0.00017949,2]
[373545242,1753036246156,-1405.91,0.00017951,2]
[373545244,1753036246165,-2362.44648558,0.00017958,2]
[373545246,1753036246174,-1405.91,0.0001796,2]
[373545248,1753036246183,-1405.91,0.0001797,2]
[373545250,1753036246192,-150.0,0.00017976,2]
[373545252,1753036246201,-1405.91,0.00017979,2]
[373545254,1753036246210,-1405.91,0.00017989,2]
[373545256,1753036246219,-1405.91,0.00017998,2]
[373545258,1753036246228,-14126.71704629,0.00018,2]
[373545260,1753036246237,-3766.1829537,0.00018,2]
[373545262,1753036246246,-156.587,0.00018004,2]
[373545265,1753036246255,-1405.91,0.00018007,2]
[373545267,1753036246265,-500.0,0.00018014,2]
[373545269,1753036246275,-500.0,0.00018014,2]
[373545271,1753036246285,-299.46949138,0.00018014,2]
[373545274,1753036246294,-319.48985886,0.00018014,2]
[373545275,1753036246304,-380.90727799,0.00018014,2]
[373545277,1753036246313,-259.99426124,0.00018014,2]
[373545279,1753036246322,-164.94,0.00018015,2]
[373545281,1753036246332,-23900.0,0.00018015,2]
[373545283,1753036246341,-1405.91,0.00018017,2]
[373545285,1753036246351,-4895.54185462,0.00018026,2]
[373545287,1753036246360,-1405.91,0.00018026,2]
[373545289,1753036246369,-1405.91,0.00018036,2]
[373545291,1753036246378,-1405.91,0.00018045,2]
[373545293,1753036246387,-1405.91,0.00018055,2]
[373545295,1753036246401,-1405.91,0.00018064,2]
[373545297,1753036246410,-1405.91,0.00018073,2]
[373545299,1753036246420,-580.6,0.00018079,2]
[373545301,1753036246429,-1405.91,0.00018083,2]
[373545303,1753036246438,-687.4,0.00018092,2]
[373545305,1753036246448,-1405.91,0.00018092,2]
[373545307,1753036246458,-457.46450928,0.00018102,2]
[373545309,1753036246468,-231.28369723,0.00018102,2]
[373545311,1753036246477,-1122.50691265,0.00018102,2]
[373545313,1753036246487,-231.28369723,0.00018102,2]
[373545315,1753036246496,-1405.91,0.00018102,2]
[373545317,1753036246505,-2362.44648558,0.00018199,2]
[373545319,1753036246515,-1416.0,0.00018217,2]
[373545321,1753036246524,-150.0,0.00018297,2]
[373545323,1753036246534,-4895.54185462,0.00018302,2]
[373545325,1753036246544,-441.31,0.00018329,2]
[373545327,1753036246553,-2362.44648558,0.00018441,2]
[373545329,1753036246562,-167.82,0.00018487,2]
[373545331,1753036246571,-232.36,0.00018517,2]
[373545333,1753036246581,-150.99,0.00018533,2]
[373545335,1753036246593,-1423.74,0.00018533,2]
[373545337,1753036246602,-299.99,0.00018533,4]
[373545338,1753036246610,-4895.54185462,0.00018578,2]
[373545340,1753036246619,-1000.0,0.00018614,2]
[373545343,1753036246628,-300.0,0.00018614,2]
[373545344,1753036246638,-300.0,0.00018614,2]
[373545346,1753036246646,-150.0,0.00018618,2]
[373545348,1753036246655,-32384.65,0.0001863,2]
[373545351,1753036246665,-1000.0,0.0001863,2]
[373545352,1753036246674,-239.84119403,0.0001865,2]
[373545355,1753036246683,-1680.0,0.00018658,2]
[373545357,1753036246693,-2362.44648558,0.00018682,2]
[373545358,1753036246702,-1000.0,0.00018699,2]
[373545361,1753036246711,-300.0,0.00018699,2]
[373545363,1753036246720,-1000.0,0.00018699,2]
[373545364,1753036246729,-300.0,0.00018699,2]
[373545366,1753036246738,-300.0,0.00018699,2]
[373545368,1753036246747,-250.0,0.00018699,2]
[373545370,1753036246756,-282.0,0.0001878,2]
[373545373,1753036246766,-251.073802,0.00018794,2]
[373545374,1753036246775,-392.63,0.00018817,2]
[373545377,1753036246784,-4895.54185462,0.00018854,2]
[373545379,1753036246793,-1867.36,0.0001888,2]
[373545380,1753036246802,-168.0,0.00018885,2]
[373545383,1753036246811,-160.5331563,0.000189,2]
[373545385,1753036246821,-160.53315623,0.000189,2]
[373545387,1753036246830,-160.53315623,0.000189,2]
[373545388,1753036246841,-160.53315623,0.000189,2]
[373545390,1753036246851,-160.53315623,0.000189,2]
[373545392,1753036246860,-160.53315623,0.000189,2]
[373545394,1753036246869,-160.53315623,0.000189,2]
[373545396,1753036246879,-200.0,0.00018904,2]
[373545398,1753036246888,-168.0,0.00018906,2]
[373545400,1753036246897,-200.0,0.00018921,2]
[373545402,1753036246906,-2362.44648558,0.00018923,2]
[373545404,1753036246915,-160.53315623,0.0001893,2]
[373545406,1753036246924,-16992.26684545,0.00018934,2]
[373545408,1753036246933,-168.0,0.00018953,2]
[373545410,1753036246942,-1851.00086473,0.00018967,2]
[373545412,1753036246954,-1097.71,0.00018978,2]
[373545414,1753036246965,-6050.0,0.00018986,2]
[373545416,1753036246976,-1851.00086473,0.00018988,2]
[373545418,1753036246990,-1867.34,0.0001899,2]
[373545420,1753036247002,-200.0,0.0001899,2]
[373545422,1753036247011,-476.8747822,0.0001899,2]
[373545424,1753036247020,-1851.00086473,0.00018993,2]
[373545426,1753036247029,-441.31,0.00019016,2]
[373545428,1753036247039,-150.0,0.00019037,2]
[373545430,1753036247048,-592.67737187,0.00019068,2]
[373545432,1753036247057,-839.31074571,0.00019077,2]
[373545434,1753036247066,-160.0,0.00019077,2]
[373545436,1753036247075,-210.86573235,0.00019077,2]
[373545438,1753036247084,-234.83263284,0.00019078,2]
[373545440,1753036247094,-2500.0,0.00019078,2]
[373545442,1753036247103,-3719.0584,0.00019078,2]
[373545444,1753036247112,-1000.0,0.00019082,2]
[373545446,1753036247121,-412.3554,0.00019082,2]
[373545448,1753036247131,-1867.34,0.0001911,2]
[373545450,1753036247140,-4895.54185462,0.0001913,2]
[373545452,1753036247149,-4000.0,0.00019151,2]
[373545454,1753036247158,-2362.44648558,0.00019165,2]
[373545456,1753036247167,-516.151,0.00019167,2]
[373545458,1753036247176,-332.53502441,0.00019168,2]
[373545460,1753036247185,-135546.978392,0.00019169,2]
[373545462,1753036247194,-3257.8000846,0.00019169,2]
[373545464,1753036247203,-500.0,0.00019173,2]
[373545466,1753036247212,-9310.0321035,0.00019174,2]
[373545468,1753036247222,-666.0,0.00019177,2]
[373545470,1753036247230,-2000.0,0.00019177,2]
[373545472,1753036247239,-666.0,0.00019177,2]
[373545474,1753036247248,-312.07112701,0.00019177,2]
[373545476,1753036247257,-300.0,0.00019177,2]
[373545478,1753036247267,-24657.33376395,0.00019178,2]
[373545480,1753036247276,-312.44751565,0.00019178,2]
[373545482,1753036247285,-480.0,0.00019178,2]
[373545484,1753036247295,-480.0,0.00019178,2]
[373545486,1753036247304,-480.0,0.00019178,2]
[373545488,1753036247313,-480.0,0.00019178,2]
[373545490,1753036247322,-480.0,0.00019178,2]
[373545492,1753036247331,-440.0,0.00019178,2]
[373545494,1753036247342,-200.57105311,0.00019178,2]
[373545496,1753036247351,-460.0,0.00019178,2]
[373545498,1753036247361,-460.0,0.00019178,2]
[373545500,1753036247371,-480.0,0.00019178,2]
[373545502,1753036247381,-460.0,0.00019178,2]
[373545504,1753036247391,-480.0,0.00019178,2]
[373545506,1753036247401,-480.0,0.00019178,2]
[373545508,1753036247410,-480.0,0.00019178,2]
[373545510,1753036247420,-460.0,0.00019178,2]
[373545512,1753036247429,-480.0,0.00019178,2]
[373545514,1753036247439,-480.0,0.00019178,2]
[373545515,1753036247457,-480.0,0.00019178,2]
[373545518,1753036247469,-480.0,0.00019178,2]
[373545519,1753036247482,-480.0,0.00019178,2]
[373545521,1753036247492,-480.0,0.00019178,2]
[373545523,1753036247501,-480.0,0.00019178,2]
[373545525,1753036247510,-480.0,0.00019178,2]
[373545527,1753036247518,-460.0,0.00019178,2]
[373545529,1753036247528,-480.0,0.00019178,2]
[373545531,1753036247537,-480.0,0.00019178,2]
[373545533,1753036247546,-480.0,0.00019178,2]
[373545535,1753036247555,-480.0,0.00019178,2]
[373545537,1753036247563,-460.0,0.00019178,2]
[373545539,1753036247572,-480.0,0.00019178,2]
[373545541,1753036247583,-460.0,0.00019178,2]
[373545543,1753036247592,-480.0,0.00019178,2]
[373545545,1753036247601,-460.0,0.00019178,2]
[373545547,1753036247609,-442.43341229,0.00019178,2]
[373545549,1753036247618,-460.0,0.00019178,2]
[373545551,1753036247627,-480.0,0.00019178,2]
[373545553,1753036247637,-480.0,0.00019178,2]
[373545555,1753036247646,-480.0,0.00019178,2]
[373545557,1753036247654,-460.0,0.00019178,2]
[373545559,1753036247663,-480.0,0.00019178,2]
[373545561,1753036247672,-492.24109688,0.00019178,2]
[373545562,1753036247681,-480.0,0.00019178,2]
[373545564,1753036247690,-480.0,0.00019178,2]
[373545566,1753036247699,-460.0,0.00019178,2]
[373545568,1753036247708,-460.0,0.00019178,2]
[373545570,1753036247718,-480.0,0.00019178,2]
[373545572,1753036247727,-480.0,0.00019178,2]
[373545574,1753036247735,-388.1681221,0.00019178,2]
[373545576,1753036247744,-460.0,0.00019178,2]
[373545578,1753036247754,-460.0,0.00019178,2]
[373545580,1753036247763,-509.06665,0.00019178,2]
[373545582,1753036247773,-460.97905495,0.00019178,2]
[373545584,1753036247782,-480.0,0.00019178,2]
[373545586,1753036247791,-275.99985865,0.00019178,2]
[373545588,1753036247800,-480.0,0.00019178,2]
[373545590,1753036247809,-616.51050662,0.00019178,2]
[373545592,1753036247818,-480.0,0.00019178,2]
[373545594,1753036247826,-460.0,0.00019178,2]
[373545596,1753036247835,-480.0,0.00019178,2]
[373545598,1753036247845,-561.19438014,0.00019178,2]
[373545600,1753036247853,-460.0,0.00019178,2]
[373545601,1753036247862,-480.0,0.00019178,2]
[373545603,1753036247871,-480.0,0.00019178,2]
[373545605,1753036247881,-521.17885176,0.00019178,2]
[373545608,1753036247891,-199.84346217,0.00019178,2]
[373545610,1753036247900,-480.0,0.00019178,2]
[373545612,1753036247909,-460.0,0.00019178,2]
[373545613,1753036247918,-480.0,0.00019178,2]
[373545616,1753036247927,-300.67068265,0.00019178,2]
[373545643,1753036248183,-480.0,0.00019178,2]
[373545645,1753036248193,-480.0,0.00019178,2]
[373545647,1753036248203,-480.0,0.00019178,2]
[373545649,1753036248212,-460.0,0.00019178,2]
[373545651,1753036248221,-440.0,0.00019178,2]
[373545653,1753036248231,-480.0,0.00019178,2]
[373545655,1753036248240,-480.0,0.00019178,2]
[373545656,1753036248249,-480.21347536,0.00019178,2]
[373545658,1753036248258,-480.0,0.00019178,2]
[373545660,1753036248267,-480.0,0.00019178,2]
[373545662,1753036248276,-480.0,0.00019178,2]
[373545664,1753036248286,-460.0,0.00019178,2]
[373545666,1753036248295,-609.57,0.00019178,2]
[373545668,1753036248304,-406.45806472,0.00019178,2]
[373545670,1753036248313,-480.0,0.00019178,2]
[373545672,1753036248324,-480.0,0.00019178,2]
[373545674,1753036248334,-480.0,0.00019178,2]
[373545676,1753036248345,-480.0,0.00019178,2]
[373545678,1753036248354,-480.0,0.00019178,2]
[373545680,1753036248363,-286.18676565,0.00019178,2]
[373545682,1753036248372,-480.0,0.00019178,2]
[373545684,1753036248381,-460.0,0.00019178,2]
[373545686,1753036248390,-480.0,0.00019178,2]
[373545688,1753036248399,-480.0,0.00019178,2]
[373545690,1753036248409,-480.0,0.00019178,2]
[373545692,1753036248418,-480.0,0.00019178,2]
[373545694,1753036248428,-480.0,0.00019178,2]
[373545696,1753036248438,-480.0,0.00019178,2]
[373545698,1753036248448,-480.0,0.00019178,2]
[373545700,1753036248457,-480.0,0.00019178,2]
[373545702,1753036248467,-480.0,0.00019178,2]
[373545704,1753036248476,-480.0,0.00019178,2]
[373545706,1753036248486,-480.0,0.00019178,2]
[373545707,1753036248495,-480.0,0.00019178,2]
[373545709,1753036248505,-480.0,0.00019178,2]
[373545711,1753036248514,-462.20415646,0.00019178,2]
[373545713,1753036248523,-480.0,0.00019178,2]
[373545715,1753036248533,-260.04559164,0.00019178,2]
[373545717,1753036248543,-480.0,0.00019178,2]
[373545719,1753036248552,-564.37888258,0.00019178,2]
[373545721,1753036248561,-480.0,0.00019178,2]
[373545723,1753036248571,-754.62,0.00019178,2]
[373545725,1753036248580,-480.0,0.00019178,2]
[373545727,1753036248591,-460.0,0.00019178,2]
[373545729,1753036248600,-480.0,0.00019178,2]
[373545731,1753036248609,-480.0,0.00019178,2]
[373545733,1753036248619,-480.0,0.00019178,2]
[373545735,1753036248627,-480.0,0.00019178,2]
[373545737,1753036248636,-480.0,0.00019178,2]
[373545739,1753036248646,-440.0,0.00019178,2]
[373545741,1753036248655,-480.0,0.00019178,2]
[373545743,1753036248665,-480.0,0.00019178,2]
[373545745,1753036248674,-460.0,0.00019178,2]
[373545747,1753036248684,-480.0,0.00019178,2]
[373545749,1753036248692,-480.0,0.00019178,2]
[373545751,1753036248702,-442.47003766,0.00019178,2]
[373545752,1753036248711,-480.0,0.00019178,2]
[373545754,1753036248721,-480.0,0.00019178,2]
[373545756,1753036248730,-480.0,0.00019178,2]
[373545758,1753036248740,-480.0,0.00019178,2]
[373545760,1753036248749,-591.62,0.00019178,2]
[373545762,1753036248759,-480.0,0.00019178,2]
[373545764,1753036248768,-480.0,0.00019178,2]
[373545766,1753036248777,-480.0,0.00019178,2]
[373545768,1753036248786,-480.0,0.00019178,2]
[373545770,1753036248798,-480.0,0.00019178,2]
[373545772,1753036248808,-480.0,0.00019178,2]
[373545774,1753036248818,-480.0,0.00019178,2]
[373545776,1753036248827,-464.26988783,0.00019178,2]
[373545778,1753036248837,-175.6067861,0.00019178,2]
[373545780,1753036248848,-501.98,0.00019178,2]
[373545782,1753036248858,-480.0,0.00019178,2]
[373545784,1753036248867,-480.0,0.00019178,2]
[373545786,1753036248876,-443.82071944,0.00019178,2]
[373545788,1753036248886,-480.0,0.00019178,2]
[373545790,1753036248895,-480.0,0.00019178,2]
[373545792,1753036248904,-400.0,0.00019178,2]
[373545794,1753036248913,-480.0,0.00019178,2]
[373545796,1753036248922,-480.0,0.00019178,2]
[373545798,1753036248931,-480.0,0.00019178,2]
[373545800,1753036248939,-480.0,0.00019178,2]
[373545802,1753036248949,-480.0,0.00019178,2]
[373545804,1753036248960,-480.0,0.00019178,2]
[373545806,1753036248970,-480.0,0.00019178,2]
[373545808,1753036248979,-480.0,0.00019178,2]
[373545810,1753036248988,-480.0,0.00019178,2]
[373545812,1753036248998,-480.0,0.00019178,2]
[373545814,1753036249008,-480.0,0.00019178,2]
[373545815,1753036249017,-500.0,0.00019178,2]
[373545817,1753036249026,-500.0,0.00019178,2]
[373545819,1753036249035,-300.0,0.00019178,2]
[373545821,1753036249044,-480.0,0.00019178,2]
[373545823,1753036249053,-500.0,0.00019178,2]
[373545825,1753036249062,-500.0,0.00019178,2]
[373545827,1753036249071,-500.0,0.00019178,2]
[373545829,1753036249080,-500.0,0.00019178,2]
[373545831,1753036249089,-500.0,0.00019178,2]
[373545833,1753036249098,-480.0,0.00019178,2]
[373545835,1753036249107,-480.0,0.00019178,2]
[373545837,1753036249116,-151.0,0.00019178,2]
[373545839,1753036249126,-222.068842,0.00019178,2]
[373545841,1753036249135,-500.0,0.00019178,2]
[373545843,1753036249145,-467.27737699,0.00019178,2]
[373545845,1753036249154,-500.0,0.00019178,2]
[373545847,1753036249163,-481.47,0.00019178,2]
[373545849,1753036249173,-500.0,0.00019178,2]
[373545851,1753036249182,-500.0,0.00019178,2]
[373545853,1753036249191,-500.0,0.00019178,2]
[373545855,1753036249200,-480.0,0.00019178,2]
[373545857,1753036249210,-480.0,0.00019178,2]
[373545859,1753036249219,-480.0,0.00019178,2]
[373545861,1753036249229,-480.0,0.00019178,2]
[373545863,1753036249239,-428.00846234,0.00019178,2]
[373545864,1753036249248,-480.0,0.00019178,2]
[373545866,1753036249258,-480.0,0.00019178,2]
[373545868,1753036249267,-480.0,0.00019178,2]
[373545870,1753036249277,-460.0,0.00019178,2]
[373545872,1753036249287,-480.0,0.00019178,2]
[373545874,1753036249299,-394.70965486,0.00019178,2]
[373545876,1753036249308,-480.0,0.00019178,2]
[373545878,1753036249318,-480.0,0.00019178,2]
[373545880,1753036249328,-745.29,0.00019178,2]
[373545882,1753036249338,-480.0,0.00019178,2]
[373545884,1753036249349,-480.0,0.00019178,2]
[373545886,1753036249358,-506.1,0.00019178,2]
[373545888,1753036249367,-460.0,0.00019178,2]
[373545890,1753036249376,-653.24,0.00019178,2]
[373545892,1753036249386,-460.0,0.00019178,2]
[373545894,1753036249395,-480.0,0.00019178,2]
[373545896,1753036249404,-440.0,0.00019178,2]
[373545898,1753036249414,-480.0,0.00019178,2]
[373545900,1753036249423,-228.28648542,0.00019178,2]
[373545902,1753036249432,-480.0,0.00019178,2]
[373545904,1753036249441,-480.0,0.00019178,2]
[373545906,1753036249450,-480.0,0.00019178,2]
[373545908,1753036249460,-480.0,0.00019178,2]
[373545910,1753036249469,-480.0,0.00019178,2]
[373545912,1753036249478,-480.0,0.00019178,2]
[373545913,1753036249487,-480.0,0.00019178,2]
[373545915,1753036249497,-480.0,0.00019178,2]
[373545917,1753036249507,-480.0,0.00019178,2]
[373545919,1753036249516,-159.92575003,0.00019178,2]
[373545921,1753036249525,-480.0,0.00019178,2]
[373545923,1753036249534,-480.0,0.00019178,2]
[373545925,1753036249544,-1000.0,0.00019178,2]
[373545927,1753036249553,-482.63224186,0.00019178,2]
[373545929,1753036249562,-480.0,0.00019178,2]
[373545931,1753036249571,-480.0,0.00019178,2]
[373545933,1753036249580,-546.9,0.00019178,2]
[373545935,1753036249589,-480.0,0.00019178,2]
[373545937,1753036249600,-546.9,0.00019178,2]
[373545939,1753036249609,-480.0,0.00019178,2]
[373545941,1753036249618,-460.0,0.00019178,2]
[373545943,1753036249627,-480.0,0.00019178,2]
[373545945,1753036249636,-480.0,0.00019178,2]
[373545947,1753036249646,-480.0,0.00019178,2]
[373545949,1753036249655,-480.0,0.00019178,2]
[373545950,1753036249664,-480.0,0.00019178,2]
[373545952,1753036249673,-480.0,0.00019178,2]
[373545954,1753036249683,-480.0,0.00019178,2]
[373545956,1753036249691,-480.0,0.00019178,2]
[373545958,1753036249700,-480.0,0.00019178,2]
[373545960,1753036249710,-480.0,0.00019178,2]
[373545962,1753036249719,-480.0,0.00019178,2]
[373545964,1753036249728,-480.0,0.00019178,2]
[373545966,1753036249737,-480.0,0.00019178,2]
[373545968,1753036249746,-480.0,0.00019178,2]
[373545970,1753036249755,-480.0,0.00019178,2]
[373545972,1753036249764,-577.3,0.00019178,2]
[373545974,1753036249774,-463.11301213,0.00019178,2]
[373545976,1753036249783,-442.61268436,0.00019178,2]
[373545977,1753036249792,-480.0,0.00019178,2]
[373545978,1753036249801,-480.0,0.00019178,2]
[373545979,1753036249810,-480.0,0.00019178,2]
[373545980,1753036249819,-480.0,0.00019178,2]
[373545981,1753036249828,-480.0,0.00019178,2]
[373545982,1753036249837,-176.18523012,0.00019178,2]
[373545983,1753036249849,-529.45548204,0.00019178,2]
[373545984,1753036249858,-480.0,0.00019178,2]
[373545985,1753036249868,-480.0,0.00019178,2]
[373545986,1753036249877,-480.0,0.00019178,2]
[373545987,1753036249886,-480.0,0.00019178,2]
[373545988,1753036249895,-480.0,0.00019178,2]
[373545989,1753036249905,-480.0,0.00019178,2]
[373545990,1753036249914,-588.78,0.00019178,2]
[373545991,1753036249923,-447.46497215,0.00019178,2]
[373545993,1753036249932,-375.9451451,0.00019178,2]
[373545995,1753036249941,-460.0,0.00019178,2]
[373545997,1753036249951,-480.0,0.00019178,2]
[373545999,1753036249964,-480.0,0.00019178,2]
[373546001,1753036249974,-480.0,0.00019178,2]
[373546003,1753036249983,-480.0,0.00019178,2]
[373546005,1753036249992,-480.0,0.00019178,2]
[373546007,1753036250003,-480.0,0.00019178,2]
[373546009,1753036250012,-480.0,0.00019178,2]
[373546011,1753036250022,-480.0,0.00019178,2]
[373546013,1753036250031,-480.0,0.00019178,2]
[373546015,1753036250041,-480.0,0.00019178,2]
[373546017,1753036250053,-403.48040942,0.00019178,2]
[373546019,1753036250063,-480.0,0.00019178,2]
[373546021,1753036250072,-614.73,0.00019178,2]
[373546023,1753036250081,-480.0,0.00019178,2]
[373546025,1753036250093,-480.0,0.00019178,2]
[373546027,1753036250102,-480.0,0.00019178,2]
[373546029,1753036250111,-480.0,0.00019178,2]
[373546031,1753036250121,-480.0,0.00019178,2]
[373546033,1753036250131,-466.33226961,0.00019178,2]
[373546035,1753036250140,-480.0,0.00019178,2]
[373546037,1753036250149,-460.0,0.00019178,2]
[373546039,1753036250159,-480.0,0.00019178,2]
[373546041,1753036250168,-462.85897206,0.00019178,2]
[373546043,1753036250177,-498.44094993,0.00019178,2]
[373546045,1753036250186,-480.0,0.00019178,2]
[373546047,1753036250196,-592.2,0.00019178,2]
[373546049,1753036250205,-480.0,0.00019178,2]
[373546051,1753036250214,-480.0,0.00019178,2]
[373546053,1753036250223,-480.0,0.00019178,2]
[373546055,1753036250232,-480.0,0.00019178,2]
[373546057,1753036250241,-151.0,0.00019178,2]
[373546059,1753036250250,-480.0,0.00019178,2]
[373546061,1753036250260,-480.0,0.00019178,2]
[373546063,1753036250269,-733.510706,0.00019178,2]
[373546065,1753036250279,-480.0,0.00019178,2]
[373546067,1753036250288,-500.0,0.00019178,2]
[373546069,1753036250297,-480.0,0.00019178,2]
[373546071,1753036250306,-480.0,0.00019178,2]